Cogmind - Beta 10.1 @@@ ROGUE MODE // 2021.06.24 @ 09:54:24 // Winter2019/RPGLIKE Player: Farfid Result: Destroyed by Fission Core chain reaction Performance ------------- Evolutions (0) 0 Regions Visited (3) 600 Robots Destroyed (37) 185 Value Destroyed (598) 598 Prototype IDs (26) 520 Alien Tech Used (0) 0 Bonus (228) 228 TOTAL SCORE: 2131 Bonus ------- Aligned with FarCom 300 Friendly Fire -72 Cogmind --------- Core Integrity 0/900 Matter 300/300 Energy 99/100 System Corruption 7% Temperature Cool (12) Movement Core (50) Location -10/Exiles Parts ------- > --- POWER (1) -------- (None) > --- PROPULSION (2) --- (None) > --- UTILITY (2) ------ Advanced Core Analyzer > --- WEAPON (3) ------- Makeshift Sword > --- INVENTORY (3) ---- Firepult Peak State ------------ > --- POWER ------------ Heavy Deuterium Engine > --- PROPULSION ------- Combat Antigrav System > --- UTILITY ---------- Targeting Computer Trap Reconfigurator > --- WEAPON ----------- AWS/Autocannon > --- INVENTORY -------- Advanced Core Analyzer Firepult [Rating: 55] Favorites ----------- Power Light Nuclear Core Engine Light Ion Engine Power Core Light Nuclear Core Propulsion Wheel Wheel Wheel Hover Unit Combat Antigrav System Utility Tractor Beam Device Tractor Beam Processor Targeting Computer Weapon Assault Rifle Ballistic Gun Assault Rifle Ballistic Cannon AWS/Autocannon Slashing Weapon Makeshift Sword Build | -11 -10 -10 -10 ------- Run | Scr Mat Min Exi Slots Evolved 4 | 3 . . 1 Power . | . . . . Propulsion 1 | 1 . . . Utility 1 | 1 . . . Weapon 2 | 1 . . 1 Parts Attached 18 | 4 2 4 8 Power 3 | 1 . 1 1 Engine 2 | 1 . . 1 Core 1 | . . 1 . Reactor . | . . . . Propulsion 4 | 2 . 1 1 Treads . | . . . . Leg . | . . . . Wheel 3 | 2 . 1 . Hover 1 | . . . 1 Flight . | . . . . Utility 4 | . 1 1 2 Device 2 | . 1 . 1 Storage . | . . . . Processor 2 | . . 1 1 Hackware . | . . . . Protection . | . . . . Artifact . | . . . . Weapon 7 | 1 1 1 4 Energy Gun . | . . . . Energy Cannon . | . . . . Ballistic Gun 4 | 1 1 1 1 Ballistic Cannon 2 | . . . 2 Launcher . | . . . . Special Weapon . | . . . . Impact Weapon . | . . . . Slashing Weapon 1 | . . . 1 Piercing Weapon . | . . . . Special Melee Weapon . | . . . . Unidentified Prototypes 1 | . . . 1 Parts Lost . | . . . . Power . | . . . . Propulsion . | . . . . Utility . | . . . . Weapon . | . . . . Highest Loss Streak . | . . . . Average Slot Usage (%) 80 | . 70 99 68 Engine 5 | . 14 5 2 Core 6 | . . 8 7 Wheel 22 | . 28 28 16 Hover 1 | . . . 2 Device 11 | . 8 14 10 Processor 10 | . . 13 12 Ballistic Gun 16 | . 18 28 6 Ballistic Cannon 1 | . . . 2 Slashing Weapon 1 | . . . 3 Naked Turns . | . . . . Heaviest Build 72 | 5 7 11 72 Greatest Support 35 | 31 31 31 35 Greatest Overweight (x) 2 | . . . 2 Average Overweight (x) . | . . . . Largest Inventory Capacity 3 | 1 1 3 3 Average Capacity 2 | 1 1 1 3 Most Carried 3 | . 1 3 3 Average Carried 1 | . . 1 2 Final Capacity 3 | 1 1 3 3 Final Carried 3 | . 1 3 2 Class Distribution -------------------- 84% | Mutant 8% | Gunner 6% | Scavenger-Mutant Dominant Class ---------------- Mutant | -10/Materials Mutant | -10/Mines Mutant | -10/Exiles Resources | -11 -10 -10 -10 ----------- Run | Scr Mat Min Exi Matter Collected 723 | 240 164 236 83 Remotely 378 | . 119 216 43 Salvage Created 851 | . 276 442 133 Parts 66 | . 26 17 23 Haulers Intercepted . | . . . . Recyclers Shooed 1 | . 1 . . Parts Field Recycled . | . . . . Retrieved Matter . | . . . . Parts Self-Destructed . | . . . . Prevented . | . . . . Kills | -11 -10 -10 -10 ------- Run | Scr Mat Min Exi Combat Hostiles Destroyed 27 | . 11 9 7 Guns 20 | . 11 9 . Cannons 7 | . . . 7 Classes Destroyed 11 | . 4 5 2 Worker 2 | . . 2 . Builder 1 | . 1 . . Recycler 2 | . . 2 . Turret 1 | . . . 1 Watcher 1 | . 1 . . Swarmer 6 | . 6 . . Grunt 10 | . 5 5 . Sentry 1 | . . 1 . Demolisher 1 | . . 1 . Zionite 1 | . . . 1 Assembled 8 | . . 2 6 Best Kill Streak 8 | . 8 3 6 Combat Bots Only 7 | . 7 2 6 Max Kills in Single Turn 1 | . 1 1 1 Gunslinging . | . . . . Exploded . | . . . . Melee . | . . . . Uniques/NPCs Destroyed 4 | . . . 4 8R-AWN (-10/Exiles) EX-DEC (-10/Exiles) EX-HEX (-10/Exiles) EX-BIN (-10/Exiles) Combat | -11 -10 -10 -10 -------- Run | Scr Mat Min Exi Damage Taken 1959 | . 457 322 1180 Core 1653 | . 381 270 1002 Absorbed by Shields . | . . . . Redirected to Core 964 | . 248 185 531 Core Remaining (%) 100 | 100 . . . Volleys Fired 76 | . 42 33 1 Largest 2 | . 2 2 1 Hottest 43 | . 40 43 23 Shots Fired 161 | . 60 66 35 Gun 127 | . 60 66 1 Cannon 34 | . . . 34 Launcher . | . . . . Special . | . . . . Kinetic 161 | . 60 66 35 Thermal . | . . . . Explosive . | . . . . Electromagnetic . | . . . . Robot Hit Streak 35 | . 10 15 35 Robot Miss Streak 5 | . 5 2 1 Penetration Max . | . . . . Secondary Targets 1 | . 1 . . Max Gunslinging Chain 1 | . 1 . . Autonomous 34 | . . . 34 Shots Hit Robots 127 | . 35 52 40 Core Hits 74 | . 21 23 30 Critical Hits 3 | . . 1 2 Critical Kills 1 | . . 1 . Critical Parts Destroyed 2 | . . . 2 Melee Attacks 15 | . . . 15 Impact . | . . . . Slashing 15 | . . . 15 Piercing . | . . . . Sneak Attacks 3 | . . . 3 Combat Hostiles . | . . . . Follow-up Attacks . | . . . . Damage Inflicted 4603 | . 431 707 3465 Guns 1151 | . 431 707 13 Cannons 2732 | . . . 2732 Explosions . | . . . . Melee 436 | . . . 436 Ramming 284 | . . . 284 Kinetic 3883 | . 431 707 2745 Thermal . | . . . . Explosive . | . . . . Electromagnetic . | . . . . Impact . | . . . . Slashing 436 | . . . 436 Piercing . | . . . . Highest Corruption 7 | . . . 7 Average Corruption 4 | . . . 4 Corruption Purged . | . . . . Effects 2 | . . . 2 Message Errors 2 | . . . 2 Overload Shots . | . . . . Overflow Damage 303 | . . . 303 Projectiles 195 | . . . 195 Explosions . | . . . . Melee 108 | . . . 108 Knockbacks 12 | . . . 12 Impact . | . . . . Kinetic 11 | . . . 11 Secondary 1 | . . . 1 Self-Inflicted Damage 168 | . . . 168 Shots . | . . . . Rammed 62 | . . . 62 Targets Rammed 62 | . . . 62 Kicked . | . . . . Crushed . | . . . . Highest Temperature 11 | . 6 11 . Average Temperature 7 | . 6 11 . Received Heat Transfer 306 | . 180 126 . Siege Activations . | . . . . Robots Corrupted . | . . . . Combat Hostiles . | . . . . Parts Fried . | . . . . Impact Corruptions 1 | . . . 1 Robots Melted . | . . . . Combat Hostiles . | . . . . Parts Melted . | . . . . Heat Transferred . | . . . . Parts Sabotaged . | . . . . Parts Stolen . | . . . . Parts Stripped . | . . . . Power Chain Reactions . | . . . . Missiles Intercepted . | . . . . Alert | -11 -10 -10 -10 ------- Run | Scr Mat Min Exi Peak Influence 326 | . 326 241 . Initial 126 | . . 126 . Average 136 | . 131 144 . Maximum Alert Level 1 | . 1 1 . Low Security (%) 81 | 100 67 86 . Level 1 18 | . 32 13 . Level 2 . | . . . . Level 3 . | . . . . Level 4 . | . . . . Level 5 . | . . . . High Security . | . . . . Max Security . | . . . . Squads Dispatched 3 | . 3 . . Investigation 1 | . 1 . . Extermination . | . . . . Reinforcement 2 | . 2 . . Assault . | . . . . Garrison . | . . . . Intercept . | . . . . Construction Impeded . | . . . . Haulers Reinforced . | . . . . Stealth | -11 -10 -10 -10 --------- Run | Scr Mat Min Exi Distress Signals . | . . . . Communications Jammed . | . . . . Distress Signals . | . . . . Times Spotted 63 | . 17 20 26 Peak Tracking Total 10 | . 5 7 10 Tactical Retreats 12 | . 1 4 7 Traps | -11 -10 -10 -10 ------- Run | Scr Mat Min Exi Traps Triggered 1 | . 1 . . Indirectly . | . . . . Trap Hack Attempts . | . . . . Triggered . | . . . . Disarmed . | . . . . Reprogrammed . | . . . . Reused 3 | . . . 3 Traps Extracted . | . . . . Installed 3 | . . . 3 Triggered . | . . . . Machines | -11 -10 -10 -10 ---------- Run | Scr Mat Min Exi Machines Disabled 4 | . . . 4 Max in Single Turn 1 | . . . 1 Machines Sabotaged . | . . . . Garrisons Compromised . | . . . . Overloaded Fab Kills . | . . . . Fab Network Shutdowns . | . . . . Hacking | -11 -10 -10 -10 --------- Run | Scr Mat Min Exi Machines Accessed 4 | . 2 1 1 Terminals 3 | . 2 1 . Fabricators . | . . . . Repair Stations . | . . . . Recycling Units . | . . . . Scanalyzers . | . . . . Garrison Access . | . . . . Total Hacks 6 | . 4 1 1 Successful 4 | . 2 1 1 Failed 2 | . 2 . . Catastrophic 1 | . 1 . . Database Lockouts . | . . . . Manual 5 | . 4 . 1 Terminals 5 | . 4 1 . Fabricators . | . . . . Repair Stations . | . . . . Recycling Units . | . . . . Scanalyzers . | . . . . Garrison Access . | . . . . Terminal Hacks 4 | . 2 1 1 Prototype ID Bank 1 | . 1 . . Branch Access Points 1 | . 1 . . Patrol Status 1 | . . 1 . EX-Prototype ID Bank 1 | . . . 1 Fabricator Hacks . | . . . . Repair Station Hacks . | . . . . Recycling Unit Hacks . | . . . . Scanalyzer . | . . . . Garrison Access Hacks . | . . . . Unauthorized Hacks . | . . . . Terminals . | . . . . Fabricators . | . . . . Repair Stations . | . . . . Recycling Units . | . . . . Scanalyzers . | . . . . Garrison Access . | . . . . Data Cores Recovered . | . . . . Used . | . . . . Hacking Detections 2 | . 2 . . Full Trace Events 1 | . 1 . . Feedback Events . | . . . . Feedback Blocked . | . . . . Robot Schematics Acquired . | . . . . Robots Built . | . . . . Matter . | . . . . Time . | . . . . Total Robot Build Rating . | . . . . Part Schematics Acquired . | . . . . Parts Built . | . . . . Matter . | . . . . Time . | . . . . Total Part Build Rating . | . . . . Parts Repaired . | . . . . Time . | . . . . Parts Recycled . | . . . . Recycled Matter . | . . . . Retrieved Matter . | . . . . Retrieved Components . | . . . . Parts Scanalyzed . | . . . . Part Schematics Acquired . | . . . . Parts Damaged . | . . . . Bothacking | -11 -10 -10 -10 ------------ Run | Scr Mat Min Exi Used RIF Installer . | . . . . Robots Hacked . | . . . . Non-combat . | . . . . Combat . | . . . . Robot Hacks Applied . | . . . . Relay Couplers Released . | . . . . Robots Rewired . | . . . . Allies Hacked . | . . . . Hacks Repelled . | . . . . Allies | -11 -10 -10 -10 -------- Run | Scr Mat Min Exi Total Allies . | . . . . Largest Group . | . . . . Highest-Rated Group . | . . . . Highest-Rated Ally . | . . . . Total Orders . | . . . . Ally Attacks 9 | . . . 9 Total Damage 497 | . . . 497 Kills 7 | . . . 7 Allies Corrupted . | . . . . Allies Melted . | . . . . Turrets Deployed 1 | . . . 1 Intel | -11 -10 -10 -10 ------- Run | Scr Mat Min Exi Robot Analysis Total . | . . . . Derelict Logs Recovered 1 | . . 1 . Drone Launches . | . . . . Drone Recoveries . | . . . . Exploration | -11 -10 -10 -10 ------------- Run | Scr Mat Min Exi Turns Passed 2216 | 34 341 828 1013 Spaces Moved 1898 | 33 234 717 914 Core 120 | 2 . . 118 Treads . | . . . . Legs . | . . . . Wheels 1604 | 31 234 717 622 Hover 174 | . . . 174 Flight . | . . . . Fastest Speed 50 | 50 90 90 50 Average Speed 88 | 85 90 90 87 Slowest Speed 110 | 90 90 90 110 Overloaded Moves . | . . . . Propulsion Burnouts . | . . . . Robots Hopped . | . . . . Cave-ins Triggered . | . . . . Exploration Rate (%) 59 | 3 49 99 87 Regions Visited 3 Branch Regions 2 Pre-discovered Areas . | . . . . Known Exits Taken 1 | . 1 . . Unknown Exits Taken 2 | 1 . 1 . Scrap Searched 2 | . . 2 . Spaces Dug 5 | . . . 5 Terrain Destroyed 5 | . . . 5 Melee 5 | . . . 5 Projectile . | . . . . AOE . | . . . . Terrain Rammed 6 | . . . 6 Walls Destroyed . | . . . . Machines Disabled 2 | . . . 2 Actions | -11 -10 -10 -10 --------- Run | Scr Mat Min Exi Total 2299 | 36 306 835 1122 Wait 136 | . 14 47 75 Move 1895 | 32 233 716 914 Hop . | . . . . Pick Up 17 | . 1 5 11 Fast Attach 13 | 4 2 2 5 Attach 3 | . . . 3 Detach . | . . . . Swap 2 | . . 2 . Drop 29 | . . 6 23 Fire 76 | . 42 33 1 Melee 15 | . . . 15 Ram 68 | . . . 68 Kick . | . . . . Crush . | . . . . Escape Stasis . | . . . . Rewire . | . . . . Trap 3 | . . . 3 Miscellaneous 42 | . 14 24 4 Route ------- -11/Scrapyard -10/Materials (discovered 2 exits: *Min x2) -10/Mines (discovered 3 exits: [*Mat x2] / *Exi) -10/Exiles (discovered 1 exit: [*Min]) History --------- Turn | Location | Event 1 | -11/Scrapyard | Upgraded with Propulsion slot (x1) 1 | -11/Scrapyard | Upgraded with Utility slot (x1) 1 | -11/Scrapyard | Upgraded with Weapon slot (x1) 2 | -11/Scrapyard | Met Revision 17 19 | -11/Scrapyard | Discovered new exit (range 15) 35 | -11/Scrapyard | Entered Materials 57 | -10/Materials | Identified exit to Mines 287 | -10/Materials | Core integrity fell below 50% 309 | -10/Materials | Build established: Mutant 312 | -10/Materials | Destroyed 7 combat bots 376 | -10/Materials | Entered Mines 378 | -10/Mines | Reached level 2 381 | -10/Mines | Joined a pair of Derelicts in attacking an 0b10 outpost 386 | -10/Mines | Met a Derelict bent on vengeance 511 | -10/Mines | Learned location of 1 exit from Materials 556 | -10/Mines | A weapon hastily lodged in a ceiling crevice suddenly fell to the ground 577 | -10/Mines | Assembled infested the area 703 | -10/Mines | Received a Rocket Launcher from a helpful Derelict 729 | -10/Mines | Discovered new exit (range 5) 755 | -10/Mines | Discovered new exit (range 7) 1073 | -10/Mines | Found a hidden stash of uninstalled traps 1200 | -10/Mines | Deemed a non-threat by the Exiles lab entrance 1200 | -10/Mines | Discovered new exit (range 5) 1204 | -10/Mines | Entered Exiles 1206 | -10/Exiles | Reached level 3 1235 | -10/Exiles | Discovered new exit (range 14) 1259 | -10/Exiles | Met 8R-AWN 1302 | -10/Exiles | Met EX-HEX 1327 | -10/Exiles | Met EX-BIN 1362 | -10/Exiles | Aligned with FarCom system 1363 | -10/Exiles | Given EX-Vault access code 1384 | -10/Exiles | Opened EX-Vault 1388 | -10/Exiles | Found Trap Reconfigurator 1393 | -10/Exiles | Found Firepult 1396 | -10/Exiles | Upgraded with Weapon slot (x1) 1413 | -10/Exiles | Warned to stay clear of 0b10 Research branches 1473 | -10/Exiles | Met EX-DEC 1624 | -10/Exiles | Found AWS/Autocannon 1704 | -10/Exiles | Attacked by the Exiles 1751 | -10/Exiles | Destroyed 8R-AWN 1836 | -10/Exiles | Destroyed EX-DEC 1869 | -10/Exiles | DAS Turret deployed 1873 | -10/Exiles | Allies destroyed EX-HEX 1971 | -10/Exiles | Destroyed EX-BIN 2149 | -10/Exiles | Core integrity fell below 20% 2217 | -10/Exiles | Destroyed by Fission Core chain reaction Last Messages --------------- 02142_ Destabilizing: System corrupted (+2). 02143_ Slammed into A-02 Transporter. 02148_ Destabilizing: Core damaged (-27). 02149_ Slammed into A-02 Transporter. 02149_ A-02 Transporter destroyed. 02157_ Rammed Machine. 02157_ Machine disabled. 02157_ Destabilizing: Core damaged (-45). 02157_ Destabilizing: System corrupted (+2). 02158_ Rammed Machine. 02158_ Mak. Sword permanently disabled. 02158_ Destabilizing: Short circuit. 02163_ MO W%6LQ50E83I 02192_ Destabilizing: Core damaged (-45). 02193_ Slammed into as-32557. 02207_ LIPPXE5V26QYL6YU>ZP 6#1BE&HR4WD L 02217_ Rigged Fission Core explodes. Map ----- +----------------------------------------------------+ | ?????????????????????????????????????????????????? | | ?????????????????????????????????????????????????? | | ?????????????????????????????????????????????????? | | ?????????????????????????????????????????????????? | | ?????????????????????????????????????????????????? | | ?????????????????????????????????????????????????? | | ?????????????????????????????????????????????????? | | ?????????????????????????????????????????????????? | | ?????????????????????????????????????????????????? | | ?????????????????????????????????????????????????? | | ??????????????????????????????#??????????????????? | | ?????????????????????????????# #????????????????? | | ????????????????????????????# #????????????????? | | ???????????????????????????? < #????????????????? | | ???????????????????????????? #????????????????? | | ???????????????????????????? ?????????????????? | | ???????????????????????????# #?????????????????? | | ?????????????????????????## ##????????????????? | | ?????????????????????????# #????????????????? | | ?????#####???????????????# #????????????????? | | ????##" #??????????????## ?????????????????? | | ????#" #?????????????## #??????????????????? | | ???##" ##????????????# #??????????????????? | | ?### ###????????### #???????????????????? | | ?# ########## * #???????????????????? | | ## #""""## @ ##???????????????????? | | # ##???????????????????? | | ## #???????????????????? | | #### ##??????????????????? | | ""#?#"""""#### ###????????????????? | | #"""##?#######??#### * ###??????????????? | | #####??????????????##### ##?????????????? | | ???????????????????????### #?????????????? | | ?????????????????????????### #?????????????? | | ???????????????????????????### #?????????????? | | ????????????????????????????#" ##????????????? | | ????????????????????????????#### ###??????????? | | ???????????????????????????????# ##?????????? | | ???????????????????????????????## ###???????? | | ????????????????????????????????### #???????? | | ??????????????????????????????????# ##???????? | | ??????????????????????????????????## ##????????? | | ???????????????????????????????????#####?????????? | | ?????????????????????????????????????????????????? | | ?????????????????????????????????????????????????? | | ?????????????????????????????????????????????????? | | ?????????????????????????????????????????????????? | | ?????????????????????????????????????????????????? | | ?????????????????????????????????????????????????? | | ?????????????????????????????????????????????????? | +----------------------------------------------------+ Best States ------------- Heat Dissipation 31 Energy Generation 18 Energy Capacity 310 Matter Stores 300 Matter Capacity 300 Sight Range 16 Terrain Scan Density 10 Resistance: KI 10 Resistance: TH 5 Resistance: EX 5 Evasion (%) 50 Targeting Accuracy 5 Core Analysis 10 Item Schematics ----------------- None Robot Schematics ------------------ None Fabricated ------------ Nothing Alien Tech Used ----------------- None Achievements -------------- None Challenges ------------ None RPGLIKE | -11 -10 -10 -10 --------- Run | Scr Mat Min Exi Levels Raised 2 | . . 1 1 XP Earned 6155 | 3000 1455 1350 350 XP Spent 5450 | 2660 . 1400 1390 Upgrades 20 | 11 . 3 6 Propulsion Slot 1 | 1 . . . Utility Slot 1 | 1 . . . Weapon Slot 2 | 1 . . 1 Core Integrity 6 | 2 . . 4 Heat Dissipation 1 | 1 . . . Mass Support 1 | 1 . . . Inventory Capacity 3 | 1 . 2 . Ranged Accuracy 1 | 1 . . . KI Resistance % 2 | 1 . . 1 TH Resistance % 1 | 1 . . . EX Resistance % 1 | . . 1 . Protomatter Created 221 | . 89 130 2 Integrity Restored 828 | . 267 501 60 Core 711 | . 267 384 60 Parts 117 | . . 117 . Protomatter Decayed 129 | . . 129 . Game ------ Seed ScanMetafiberHumpback Manual? 0 Play Time 00:25:12 Cumulative 453.4 hours Start 2021.06.24 @ 09:33:07 End 2021.06.24 @ 09:54:24 Sessions 1 Manual Loads 0 Difficulty Rogue Special Mode Winter2019/RPGLIKE Game No. 169 Rogue 169 Adventurer 0 Explorer 0 Win Type - Total 34 Types 24/1/5/2/1/0/0/0/1 Lore% 85 Gallery% 92 Achievement% 80 Wizard Run 0 Options --------- ASCII 0 Keyboard 0 Movement Mouse Keybinds 0 Fullscreen 2 Font 12/Smallcaps Map View 83x54 Tactical HUD 1 Map Filters NONE Filters NONE Steam X RUN: 2983cc38-6dc8-4843-a177-ea82c691ab73